bitfinex-derivatives/quotes_BTCF0:USTF0_20251103
["timestamp","ask_amount","ask_price","bid_price","bid_amount"]
[1762138030886,0.25822575,108760.0,108750.0,0.04906505]
[1762138031078,0.1466129,108760.0,108750.0,0.04906505]
[1762138031592,0.1362529,108760.0,108750.0,0.09534505]
[1762138031779,0.1466129,108760.0,108740.0,0.04940328]
[1762138031987,0.0433,108730.0,108720.0,0.16050377]
[1762138032285,0.1033129,108760.0,108720.0,0.09456156]
[1762138032487,0.02234024,108760.0,108720.0,0.31815331]
[1762138032682,0.06522985,108760.0,108750.0,0.04628]
[1762138033091,0.0443,108760.0,108750.0,0.04628]
[1762138033489,0.0453,108760.0,108750.0,0.04628]
[1762138033790,0.0453,108760.0,108750.0,0.05728]
[1762138033986,0.0443,108760.0,108750.0,0.05728]
[1762138034190,0.001,108760.0,108750.0,0.08128]
[1762138034382,0.001,108760.0,108750.0,0.11128]
[1762138034590,0.001,108760.0,108750.0,0.17289285]
[1762138034793,0.001,108760.0,108750.0,0.19289285]
[1762138035200,0.001,108760.0,108750.0,0.38376]
[1762138035493,0.001,108760.0,108750.0,0.40376]
[1762138036295,0.0222,108760.0,108750.0,0.06128]
[1762138036496,0.04542,108760.0,108750.0,0.38376]
[1762138036898,0.0222,108760.0,108750.0,0.38376]
[1762138037099,0.001,108760.0,108750.0,0.38376]
[1762138037299,0.04681,108760.0,108750.0,0.38376]
[1762138039003,0.04681,108760.0,108750.0,0.06128]
[1762138039199,0.04681,108760.0,108750.0,0.3836]
[1762138039803,0.1387586,108760.0,108750.0,0.3836]
[1762138040303,0.1155386,108760.0,108750.0,0.3836]
[1762138040502,0.0929486,108760.0,108750.0,0.3836]
[1762138040905,0.1387586,108760.0,108750.0,0.3836]
[1762138041208,0.1387586,108760.0,108750.0,0.8836]
[1762138042800,0.1155386,108760.0,108750.0,0.8836]
[1762138043205,0.0929486,108760.0,108750.0,0.8836]
[1762138043507,0.0929486,108760.0,108750.0,0.88336]
[1762138043705,0.0929486,108760.0,108750.0,0.9753172]
[1762138043898,0.0929486,108760.0,108750.0,0.88336]
[1762138044104,0.0919471,108770.0,108760.0,0.05915]
[1762138045201,0.0919404,108770.0,108760.0,0.0159]
[1762138045509,0.001,108770.0,108760.0,0.28281165]
[1762138045802,0.0919369,108780.0,108770.0,0.04335]
[1762138046107,0.0919369,108780.0,108770.0,0.36535]
[1762138046611,0.0919369,108780.0,108770.0,0.4572899]
[1762138047001,0.0939369,108780.0,108770.0,0.4572899]
[1762138047199,0.002,108780.0,108770.0,0.56890275]
[1762138047397,0.0919234,108790.0,108780.0,0.1352819]
[1762138047605,0.09192,108800.0,108780.0,0.23712475]
[1762138047812,0.09192,108800.0,108790.0,0.36531]
[1762138048401,0.0919234,108790.0,108780.0,0.01358]
[1762138048607,0.1363903,108770.0,108760.0,0.05625]
[1762138048909,0.1363903,108770.0,108760.0,0.37821]
[1762138049206,0.1353903,108770.0,108760.0,0.05625]
[1762138049411,0.24700315,108770.0,108760.0,0.05625]
[1762138049797,0.24700315,108770.0,108760.0,0.05725]
[1762138050202,0.24600315,108770.0,108760.0,0.05725]
[1762138051109,0.24700315,108770.0,108760.0,0.06125]
[1762138052011,0.1353903,108770.0,108760.0,0.06125]
[1762138055014,0.1124903,108770.0,108760.0,0.06125]
[1762138055208,0.1353903,108770.0,108760.0,0.06125]
[1762138055615,0.0899403,108770.0,108760.0,0.06125]
[1762138056007,0.001,108770.0,108760.0,0.26481135]
[1762138056313,0.001,108770.0,108760.0,0.33430578]
[1762138056512,0.12269929,108810.0,108770.0,0.0919398]
[1762138056714,0.15706285,108810.0,108800.0,0.02111]
[1762138057013,0.04545,108790.0,108780.0,0.37873]
[1762138057215,0.1373736,108790.0,108780.0,0.37873]
[1762138058011,0.1363736,108790.0,108780.0,0.37873]
[1762138058410,0.24798645,108790.0,108780.0,0.37873]
[1762138058616,0.24798645,108790.0,108780.0,0.05693]
[1762138058816,0.25098645,108790.0,108780.0,0.05693]
[1762138059117,0.137382,108780.0,108770.0,0.09384443]
[1762138059317,0.136382,108780.0,108770.0,0.04335]
[1762138059511,0.113482,108780.0,108770.0,0.09284443]
[1762138060011,0.21053685,108790.0,108780.0,0.05693]
[1762138060012,0.007,108790.0,108780.0,0.05693]
[1762138060207,0.003,108790.0,108780.0,0.37861]
[1762138060411,0.02555,108790.0,108780.0,0.37861]
[1762138060615,0.003,108790.0,108780.0,0.37861]
[1762138060918,0.15706285,108810.0,108800.0,0.03469]
[1762138061111,0.15706285,108810.0,108800.0,0.05693]
[1762138061112,0.04545,108810.0,108800.0,0.05693]
[1762138061817,0.04545,108810.0,108800.0,0.08990292]
[1762138062218,0.1433646,108810.0,108800.0,0.09090292]
[1762138063420,0.1533646,108810.0,108800.0,0.09190292]
[1762138063810,0.26497745,108810.0,108800.0,2e-08]
[1762138064116,0.86497745,108810.0,108800.0,2e-08]
[1762138065121,0.26497745,108810.0,108800.0,0.05647002]
[1762138065318,0.26497745,108810.0,108800.0,0.02111002]
[1762138066113,0.26497745,108810.0,108800.0,0.05647002]
[1762138067617,0.1533646,108810.0,108800.0,0.05647002]
[1762138068413,0.26497745,108810.0,108800.0,0.05647002]
[1762138070515,0.1533646,108810.0,108800.0,0.05647002]
[1762138071412,0.26497745,108810.0,108800.0,0.05647002]
[1762138071614,0.26497745,108810.0,108800.0,2e-08]
[1762138071810,0.81952745,108810.0,108800.0,2e-08]
[1762138072213,0.84030302,108810.0,108800.0,2e-08]
[1762138072922,0.1358021,108780.0,108770.0,0.27280443]
[1762138073719,0.1358021,108780.0,108770.0,0.22331]
[1762138074321,0.1378021,108780.0,108770.0,0.22331]
[1762138074925,0.1378021,108780.0,108770.0,0.22431]
[1762138075123,0.1398021,108780.0,108770.0,0.22431]
[1762138075424,0.1398021,108780.0,108770.0,0.04579]
[1762138076123,0.25441495,108780.0,108770.0,0.001]
[1762138076424,0.58626122,108780.0,108770.0,0.001]
[1762138076827,0.57261495,108780.0,108770.0,0.04579]
[1762138077023,0.1398021,108780.0,108770.0,0.04579]
[1762138077229,0.0959321,108780.0,108770.0,0.04579]
[1762138077723,0.1182021,108780.0,108770.0,0.04579]
[1762138078119,0.1398021,108780.0,108770.0,0.04579]
[1762138078320,0.0959321,108780.0,108770.0,0.18722503]
[1762138078516,0.0959321,108780.0,108770.0,0.09528443]
[1762138079620,0.0959321,108780.0,108770.0,0.20689728]
[1762138080229,0.0959321,108780.0,108770.0,0.09528443]
[1762138080828,0.1182021,108780.0,108770.0,0.09528443]
[1762138081029,0.1398021,108780.0,108770.0,0.41648443]
[1762138081333,0.1398021,108780.0,108770.0,0.09528443]
[1762138081927,0.1398021,108780.0,108770.0,0.04579]
[1762138082320,0.1398021,108780.0,108770.0,0.09528443]
[1762138082617,0.1398021,108780.0,108770.0,0.04579]
[1762138083027,0.0959321,108780.0,108770.0,0.09528443]
[1762138083724,0.004,108780.0,108770.0,0.18722493]
[1762138083921,0.0959321,108780.0,108770.0,0.09528443]
[1762138084128,0.0959321,108780.0,108770.0,0.18722513]
[1762138084328,0.004,108780.0,108770.0,0.1377307]
[1762138084626,0.0919206,108800.0,108790.0,0.04479]
[1762138085026,0.1141906,108800.0,108790.0,0.09432144]
[1762138085226,0.0919206,108800.0,108790.0,0.09432144]
[1762138085826,0.0919206,108800.0,108790.0,0.18624474]
[1762138086025,0.0919021,108820.0,108810.0,0.02178]
[1762138086230,0.1357638,108830.0,108820.0,0.05837]
[1762138086634,0.1357557,108840.0,108830.0,0.04479]
[1762138087521,0.0918857,108840.0,108830.0,0.04479]
[1762138088131,0.1357557,108840.0,108830.0,0.04479]
[1762138088433,0.1537557,108840.0,108830.0,0.04679]
[1762138088830,0.1637557,108840.0,108830.0,0.04779]
[1762138089022,0.1457557,108840.0,108830.0,0.04579]
[1762138089230,0.1507557,108840.0,108830.0,0.04679]
[1762138089529,0.1597557,108840.0,108830.0,0.02601]
[1762138089720,0.35319539,108840.0,108830.0,0.003]
[1762138090729,0.67443539,108840.0,108830.0,0.003]
[1762138092021,0.0919068,108810.0,108800.0,0.38434711]
[1762138092222,0.0918989,108820.0,108800.0,0.47626241]
[1762138092429,0.0918989,108820.0,108810.0,0.1366967]
[1762138092631,0.0918989,108820.0,108810.0,0.04479]
[1762138093129,0.0333858,108880.0,108830.0,0.04479]
[1762138093331,0.00911,108880.0,108840.0,0.52182969]
[1762138093524,1.50911,108880.0,108840.0,0.3347]
[1762138093835,1.69623969,108880.0,108840.0,0.45948309]
[1762138094034,1.69623969,108880.0,108850.0,0.12476899]
[1762138094035,1.50911,108880.0,108850.0,0.12476899]
[1762138094227,1.50911,108880.0,108870.0,0.02301]
[1762138094430,0.07098,108880.0,108870.0,0.04479]
[1762138095327,0.07898,108880.0,108870.0,0.04679]
[1762138095725,0.07398,108880.0,108870.0,0.04679]
[1762138095935,0.08298,108880.0,108870.0,0.04779]
[1762138096527,0.07387,108880.0,108870.0,0.1396465]
[1762138097735,0.03,108880.0,108870.0,0.1396465]
[1762138098036,0.0881,108880.0,108870.0,0.04779]
[1762138098539,0.0881,108880.0,108870.0,0.02601]
[1762138099139,0.0881,108880.0,108870.0,0.04843]
[1762138099638,0.1799481,108880.0,108870.0,0.003]
[1762138100231,0.1799481,108880.0,108870.0,0.04703]
[1762138101138,0.1669281,108880.0,108870.0,0.04703]
[1762138101529,0.1799481,108880.0,108870.0,0.04703]
[1762138101731,0.1799481,108880.0,108870.0,0.02461]
[1762138102035,0.1799481,108880.0,108870.0,0.003]
[1762138103038,0.1799481,108880.0,108870.0,0.02461]
[1762138103238,0.1799481,108880.0,108870.0,0.04703]
[1762138103440,0.1669281,108880.0,108870.0,0.1388866]
[1762138103637,0.0524,108880.0,108870.0,0.1388866]
[1762138103836,0.0524,108880.0,108870.0,0.32601629]
[1762138103837,0.03,108880.0,108870.0,0.32601629]
[1762138104036,0.1218482,108880.0,108870.0,0.32601629]
[1762138104236,0.1218482,108880.0,108870.0,0.1388866]
[1762138104530,0.1218482,108880.0,108870.0,0.1588866]
[1762138104531,0.03,108880.0,108870.0,0.1588866]
[1762138105140,0.1442482,108880.0,108870.0,0.04703]
[1762138105344,0.1662082,108880.0,108870.0,0.04703]
[1762138105535,0.1797682,108880.0,108870.0,0.04703]
[1762138105732,0.1587682,108880.0,108870.0,0.36627]
[1762138105934,0.1557682,108880.0,108870.0,0.04403]
[1762138106132,0.1557682,108880.0,108870.0,0.02161]
[1762138106536,0.1537682,108880.0,108870.0,0.02161]
[1762138106741,0.1627682,108880.0,108870.0,0.02161]
[1762138107043,0.1587682,108880.0,108870.0,0.02161]
[1762138107240,0.1627682,108880.0,108870.0,0.04453]
[1762138107541,0.1350966,108870.0,108860.0,0.05857]
[1762138107936,0.1350966,108870.0,108860.0,0.04461]
[1762138108543,0.1350966,108870.0,108860.0,0.05781]
[1762138109039,0.1340966,108870.0,108860.0,0.05781]
[1762138109344,0.1390966,108870.0,108860.0,0.05781]
[1762138109845,0.015,108870.0,108860.0,0.38680469]
[1762138110443,0.015,108870.0,108860.0,0.35680469]
[1762138111341,0.015,108870.0,108860.0,0.36970658]
[1762138111538,0.015,108870.0,108860.0,0.38970658]
[1762138111936,0.04824,108870.0,108860.0,0.05781]
[1762138112243,0.05524,108870.0,108860.0,0.470715]
[1762138112443,0.05024,108870.0,108860.0,0.470635]
[1762138112638,0.01,108870.0,108860.0,0.37877]
[1762138112836,0.05324,108870.0,108860.0,0.37877]
[1762138113035,0.05324,108870.0,108860.0,0.36557]
[1762138113231,0.04324,108860.0,108850.0,0.05459189]
[1762138113435,0.04324,108860.0,108850.0,0.36557]
[1762138113940,0.04324,108850.0,108840.0,0.03290189]
[1762138114248,0.04324,108840.0,108830.0,0.04461]
[1762138114842,0.01356,108860.0,108830.0,0.04461]
[1762138115042,0.01756,108860.0,108830.0,0.136499]
[1762138115243,0.01756,108860.0,108830.0,0.16940089]
[1762138115546,0.04324,108850.0,108840.0,0.05781]
[1762138115745,0.01756,108860.0,108850.0,0.1364834]
[1762138115746,0.02128,108860.0,108850.0,0.1364834]
[1762138115945,0.04324,108870.0,108860.0,0.05781]
[1762138116445,0.02128,108870.0,108860.0,0.149675]
[1762138116748,0.1350956,108880.0,108870.0,0.04461]
[1762138117546,0.1486556,108880.0,108870.0,0.04461]
[1762138118251,0.1350965,108870.0,108860.0,0.36701]
[1762138118741,0.1350965,108870.0,108860.0,0.34309]
[1762138118934,0.1340965,108870.0,108860.0,0.02169]
[1762138119140,0.0568,108860.0,108850.0,0.03290189]
[1762138119342,0.04324,108850.0,108840.0,0.50415379]
[1762138119737,0.04224,108850.0,108840.0,0.41227189]
[1762138121046,0.04524,108850.0,108840.0,0.09071189]
[1762138121255,0.05324,108850.0,108840.0,0.09071189]
[1762138122050,0.011,108850.0,108840.0,0.09071189]
[1762138122646,0.05424,108850.0,108840.0,0.09071189]
[1762138123353,0.05424,108850.0,108840.0,0.140239]
[1762138124449,0.05424,108850.0,108840.0,0.09071189]
[1762138125356,0.05424,108850.0,108840.0,0.18259319]
[1762138125546,0.011,108850.0,108840.0,0.4363481]
[1762138125745,0.011,108850.0,108840.0,0.4063481]
[1762138126251,0.011,108850.0,108840.0,0.35682099]
[1762138126553,0.09186,108870.0,108860.0,0.1464249]
[1762138126753,0.09186,108870.0,108860.0,0.50091907]
[1762138126947,0.13721,108870.0,108860.0,0.40905417]
[1762138127143,0.13721,108870.0,108860.0,0.39983417]
[1762138127345,0.13721,108870.0,108860.0,0.07831417]
[1762138127549,0.13721,108870.0,108860.0,0.39979417]
[1762138127958,0.15321,108870.0,108860.0,0.40079417]
[1762138128454,0.09186,108870.0,108860.0,0.50009917]
[1762138128658,0.10786,108870.0,108860.0,0.68822886]
[1762138129058,0.016,108870.0,108860.0,0.73769012]
[1762138129361,0.016,108870.0,108860.0,0.70471595]
[1762138129562,0.016,108870.0,108860.0,0.61285095]
[1762138129563,0.1078566,108870.0,108860.0,0.61285095]
[1762138129760,0.1078566,108870.0,108860.0,0.42572126]
[1762138129961,0.1532066,108870.0,108860.0,0.45869656]
[1762138130259,0.1307466,108870.0,108860.0,0.45869656]
[1762138130760,0.1078566,108870.0,108860.0,0.51758626]
[1762138130959,0.016,108870.0,108860.0,0.51758626]
[1762138131161,0.016,108870.0,108860.0,0.72471595]
[1762138131958,0.1078566,108870.0,108860.0,0.72471595]
[1762138132260,0.1078566,108870.0,108860.0,0.61285095]
[1762138132962,0.1532066,108870.0,108860.0,0.41728126]
[1762138133261,0.1532066,108870.0,108860.0,0.41708126]
[1762138133662,0.1532066,108870.0,108860.0,0.42552126]
[1762138133858,0.1532066,108870.0,108860.0,0.41708126]
[1762138134260,0.1532066,108870.0,108860.0,0.42552126]
[1762138134657,0.1532066,108870.0,108860.0,0.41708126]
[1762138134865,0.1532066,108870.0,108860.0,0.42552126]
[1762138135363,0.1532066,108870.0,108860.0,0.41708126]
[1762138136361,0.1532066,108870.0,108860.0,0.07932156]
[1762138136862,0.1532066,108870.0,108860.0,0.05701156]
[1762138137063,0.1532066,108870.0,108860.0,0.07932156]
[1762138141370,0.016,108870.0,108860.0,0.38323625]
[1762138141568,0.33692,108870.0,108860.0,0.38377499]
[1762138141766,0.0918496,108880.0,108870.0,0.1371969]
[1762138141968,0.4128496,108880.0,108870.0,0.09482092]
[1762138142172,0.4711496,108880.0,108870.0,0.09482092]
[1762138142466,0.4711496,108880.0,108870.0,0.03299097]
[1762138142660,1.0711496,108880.0,108870.0,0.03299097]
[1762138143063,1.0821496,108880.0,108870.0,0.03299097]
[1762138143777,1.27327929,108880.0,108870.0,0.00379201]
[1762138143966,0.04535,108870.0,108860.0,0.00379201]
[1762138144276,0.36643,108870.0,108860.0,0.00379201]
[1762138144663,0.04535,108870.0,108860.0,0.00379201]
[1762138144861,0.36647,108870.0,108860.0,0.00379201]
[1762138145061,1.07793184,108870.0,108860.0,0.00379201]
[1762138145269,0.04535,108850.0,108840.0,0.09482092]
[1762138145461,0.36643,108850.0,108840.0,0.09482092]
[1762138145664,0.04535,108850.0,108840.0,0.04948092]
[1762138145859,0.04235,108850.0,108840.0,0.04948092]
[1762138146166,0.0583,108840.0,108830.0,0.04948092]
[1762138146567,0.02289,108830.0,108820.0,0.09482092]
[1762138146770,0.35851,108830.0,108820.0,0.09484198]
[1762138146960,0.35751,108830.0,108820.0,0.09484198]
[1762138147170,0.35751,108830.0,108820.0,0.10644198]
[1762138147574,0.34851,108830.0,108820.0,0.10644198]
[1762138148072,0.01295,108860.0,108830.0,0.02231]
[1762138148369,0.36643,108850.0,108840.0,0.04534]
[1762138148575,0.0583,108840.0,108830.0,0.04534]
[1762138148875,0.04535,108830.0,108820.0,0.10944198]
[1762138149068,0.36943,108830.0,108820.0,0.09784198]
[1762138149874,0.36743,108830.0,108820.0,0.05932]
[1762138150373,0.36739,108830.0,108820.0,0.05932]
[1762138150568,0.04635,108830.0,108820.0,0.06232]
[1762138150768,0.24387,108830.0,108820.0,0.06232]
[1762138151070,0.04635,108830.0,108820.0,0.04834]
[1762138151271,0.2923705,108830.0,108820.0,0.17378184]
[1762138151467,0.2923705,108830.0,108820.0,0.22328382]
[1762138151668,0.3152605,108830.0,108820.0,0.22328382]
[1762138152369,0.1177805,108830.0,108820.0,0.22328382]
[1762138152571,0.0948905,108830.0,108820.0,0.22328382]
[1762138152770,0.32428,108830.0,108820.0,0.33518262]
[1762138152975,0.003,108830.0,108820.0,0.62518262]
[1762138153172,0.2301035,108850.0,108840.0,0.05932]
[1762138154778,0.04535,108840.0,108830.0,0.09484198]
[1762138155275,0.05834,108840.0,108830.0,0.09484198]
[1762138155475,0.05834,108840.0,108830.0,0.04534]
[1762138155674,0.37954,108840.0,108830.0,0.04534]
[1762138155870,0.38754,108840.0,108830.0,0.02403]
[1762138156075,0.3875,108840.0,108830.0,0.001]
[1762138156372,0.06634,108840.0,108830.0,0.02531]
[1762138156580,0.3875,108840.0,108830.0,0.04803]
[1762138157275,0.3875,108840.0,108830.0,0.002]
[1762138158666,0.3875,108840.0,108830.0,0.001]
[1762138158973,0.3915,108840.0,108830.0,0.001]
[1762138159175,0.3915,108840.0,108830.0,0.04603]
[1762138159375,0.07434,108840.0,108830.0,0.04603]
[1762138159765,0.06135,108840.0,108830.0,0.24938214]
[1762138159966,0.34767,108840.0,108830.0,0.15749184]
[1762138160578,0.4395518,108840.0,108830.0,0.15749184]
[1762138161070,0.1532318,108840.0,108830.0,0.15749184]
[1762138161375,0.016,108840.0,108830.0,0.15749184]
[1762138161576,0.016,108840.0,108830.0,0.22699382]
[1762138161879,0.1078819,108840.0,108830.0,0.31888412]
[1762138162474,0.1078819,108840.0,108830.0,0.20699382]
[1762138163477,0.1530819,108840.0,108830.0,0.09553198]
[1762138163777,0.1530819,108840.0,108830.0,0.20699382]
[1762138163970,0.1660719,108840.0,108830.0,0.09553198]
[1762138164570,0.1078819,108840.0,108830.0,0.29888412]
[1762138164774,0.016,108840.0,108830.0,0.29888412]
[1762138165479,0.0918735,108850.0,108840.0,0.04718]
[1762138165670,0.1140535,108850.0,108840.0,0.2080629]
[1762138166079,0.1140535,108850.0,108840.0,0.2999448]
[1762138166378,0.1140535,108850.0,108840.0,0.2080629]
[1762138166979,0.1190535,108850.0,108840.0,0.2080629]
[1762138167280,0.1250535,108850.0,108840.0,0.2080629]
[1762138167479,0.1250535,108850.0,108840.0,0.2999445]
[1762138167480,0.011,108850.0,108840.0,0.2999445]
[1762138167871,0.1140409,108870.0,108860.0,0.00298]
[1762138168071,0.1373509,108870.0,108860.0,0.15484184]
[1762138168772,0.1373509,108870.0,108860.0,0.04338]
[1762138169078,0.1433509,108870.0,108860.0,0.04338]
[1762138169376,0.1373549,108860.0,108850.0,0.18215139]
[1762138169582,0.1500549,108860.0,108850.0,0.20427139]
[1762138169879,0.1500549,108860.0,108850.0,0.09280955]
[1762138170780,0.1620549,108860.0,108850.0,0.09280955]
[1762138170968,0.4248649,108860.0,108850.0,0.20427139]
[1762138171176,0.333,108860.0,108850.0,0.29614469]
[1762138171679,0.326,108860.0,108850.0,0.29814469]
[1762138171983,0.4760549,108860.0,108850.0,0.20627139]
[1762138172172,0.4760549,108860.0,108850.0,0.0948001]
[1762138172679,0.4710549,108860.0,108850.0,0.0948001]
[1762138173086,0.4710549,108860.0,108850.0,0.0928001]
[1762138173281,0.4720549,108860.0,108850.0,0.0928001]
[1762138173687,0.1510549,108860.0,108850.0,0.0928001]
[1762138173871,0.1510549,108860.0,108850.0,0.0938001]
[1762138174184,0.4720149,108860.0,108850.0,0.001]
[1762138174390,0.1373633,108850.0,108840.0,0.0494201]
[1762138174782,0.1353633,108850.0,108840.0,0.0706801]
[1762138174981,0.1353633,108850.0,108840.0,0.0928001]
[1762138175786,0.1353633,108850.0,108840.0,0.0938001]
[1762138176080,0.4563233,108850.0,108840.0,0.0938001]
[1762138176886,0.1353633,108850.0,108840.0,0.0938001]
[1762138177080,0.4563233,108850.0,108840.0,0.0948001]
[1762138177474,0.1353633,108850.0,108840.0,0.0948001]
[1762138177678,0.05819,108860.0,108850.0,0.04338]
[1762138177884,0.37915,108860.0,108850.0,0.18780911]
[1762138178185,0.37915,108860.0,108850.0,0.07634727]
[1762138179177,0.37915,108860.0,108850.0,0.03296727]
[1762138179783,0.38115,108860.0,108850.0,0.03296727]
[1762138180788,0.06019,108860.0,108850.0,0.03296727]
[1762138180985,0.38115,108860.0,108850.0,0.03296727]
[1762138182083,0.06019,108860.0,108850.0,0.03296727]
[1762138182289,0.38115,108860.0,108850.0,0.03296727]
[1762138182689,0.06019,108860.0,108850.0,0.03296727]
[1762138182876,0.38115,108860.0,108850.0,0.03296727]
[1762138183075,0.4730151,108860.0,108850.0,0.03296727]
[1762138183279,0.1520551,108860.0,108850.0,0.05422727]
[1762138183590,0.4730151,108860.0,108850.0,0.05422727]
[1762138183991,0.1520551,108860.0,108850.0,0.05422727]
[1762138184192,0.4730151,108860.0,108850.0,0.07634727]
[1762138184381,0.1520551,108860.0,108850.0,0.07634727]
[1762138184580,0.4730151,108860.0,108850.0,0.18780911]
[1762138184776,0.1520551,108860.0,108850.0,0.29613534]
[1762138184978,0.1520551,108860.0,108850.0,0.20426194]
[1762138185185,0.4730151,108860.0,108850.0,0.20426194]
[1762138185487,0.1520551,108860.0,108850.0,0.20426194]
[1762138185691,0.4730151,108860.0,108850.0,0.20426194]
[1762138186192,0.0938652,108860.0,108850.0,0.22426194]
[1762138186492,0.4148252,108860.0,108850.0,0.26671554]
[1762138187394,0.4148252,108860.0,108850.0,0.24671524]
[1762138187687,0.4361552,108860.0,108850.0,0.26671524]
[1762138187892,0.4361552,108860.0,108850.0,0.17584184]
[1762138188194,0.4361552,108860.0,108850.0,0.26871524]
[1762138188391,0.4705652,108860.0,108850.0,0.16669614]
[1762138188696,0.4705652,108860.0,108850.0,0.04538]
[1762138189181,0.4705652,108860.0,108850.0,0.002]
[1762138189583,0.4705652,108860.0,108850.0,0.05151054]
[1762138190885,0.1496052,108860.0,108850.0,0.05151054]
[1762138191086,0.4705652,108860.0,108850.0,0.05151054]
[1762138191993,0.4705652,108860.0,108850.0,0.05051054]
[1762138192194,0.4725652,108860.0,108850.0,0.05051054]
[1762138192389,0.4725652,108860.0,108850.0,0.04951054]
[1762138192586,0.1516052,108860.0,108850.0,0.04951054]
[1762138192784,0.1516052,108860.0,108850.0,0.20466238]
[1762138192992,0.32296,108860.0,108850.0,0.26702494]
[1762138193190,0.4381547,108860.0,108850.0,0.17515184]
[1762138193497,0.4381547,108860.0,108850.0,0.33296715]
[1762138193794,0.4597147,108860.0,108850.0,0.15515184]
[1762138193997,0.1367636,108850.0,108840.0,0.22109405]
[1762138194394,0.1367636,108850.0,108840.0,0.10963221]
[1762138194596,0.1357636,108850.0,108840.0,0.04369]
[1762138194786,0.1357636,108850.0,108840.0,0.10963221]
[1762138194991,0.1357636,108850.0,108840.0,0.04369]
[1762138195188,0.1347636,108850.0,108840.0,0.04669]
[1762138195488,0.1347636,108850.0,108840.0,0.138572]
[1762138195685,0.1347636,108850.0,108840.0,0.04669]
[1762138195894,0.1347636,108850.0,108840.0,0.138572]
[1762138196096,0.4557236,108850.0,108840.0,0.142572]
[1762138197096,0.4557236,108850.0,108840.0,0.05069]
[1762138197294,0.4557236,108850.0,108840.0,0.11663221]
[1762138197595,0.4557236,108850.0,108840.0,0.22809405]
[1762138198084,0.4557236,108850.0,108840.0,0.16215184]
[1762138198287,0.4577236,108850.0,108840.0,0.142572]
[1762138198488,0.4577236,108850.0,108840.0,0.20851421]
[1762138199201,0.4577236,108850.0,108840.0,0.11663221]
[1762138199703,0.36581,108850.0,108840.0,0.20851421]
[1762138199999,0.4576836,108850.0,108840.0,0.20851421]
[1762138200394,0.4576836,108850.0,108840.0,0.11663221]
[1762138200593,0.4576836,108850.0,108840.0,0.20851411]
[1762138200789,0.1367636,108850.0,108840.0,0.07294221]
[1762138201002,1.0576836,108850.0,108820.0,0.08242799]
[1762138201191,0.04489,108820.0,108810.0,0.1654299]
[1762138201497,0.05752,108840.0,108830.0,0.04369]
[1762138201704,0.05752,108840.0,108830.0,0.09323773]
[1762138201897,0.36581,108840.0,108830.0,0.15515184]
[1762138202103,0.36581,108840.0,108830.0,0.17515184]
[1762138202301,0.02333,108830.0,108820.0,0.15554184]
[1762138202602,0.04489,108830.0,108820.0,0.03059]
[1762138202800,0.04489,108830.0,108820.0,0.06618]
[1762138202995,0.04489,108830.0,108820.0,0.26054064]
[1762138203194,0.04189,108830.0,108820.0,0.26054064]
[1762138203401,0.04189,108830.0,108820.0,0.16864184]
[1762138204403,0.04189,108830.0,108820.0,0.05718]
[1762138204602,0.04189,108830.0,108820.0,0.06018]
[1762138204800,0.04189,108830.0,108820.0,0.04669]
[1762138205003,0.04189,108830.0,108820.0,0.04969]
[1762138205803,0.04189,108830.0,108820.0,0.02759]
[1762138206390,0.04189,108830.0,108820.0,0.07710697]
[1762138207090,0.04189,108830.0,108820.0,0.05551697]
[1762138207091,0.64189,108830.0,108820.0,0.05551697]
[1762138207296,0.64189,108830.0,108820.0,0.006]
[1762138207996,0.04189,108830.0,108820.0,0.04969]
[1762138208194,0.04189,108830.0,108820.0,0.20459587]
[1762138208501,0.02033,108830.0,108820.0,0.39150886]
[1762138209598,0.1337804,108830.0,108820.0,0.11269697]
[1762138209900,0.1337804,108830.0,108820.0,0.09920697]
[1762138210291,0.1337804,108830.0,108820.0,0.09620697]
[1762138210490,0.1367804,108830.0,108820.0,0.10669697]
[1762138214194,0.003,108830.0,108820.0,0.38550886]
[1762138214399,0.003,108830.0,108820.0,0.35599189]
[1762138214805,0.003,108830.0,108820.0,0.42194177]
[1762138216505,0.0918821,108840.0,108830.0,0.0918903]
[1762138216707,0.1138921,108840.0,108830.0,0.28046968]
[1762138217207,0.1138921,108840.0,108830.0,0.37236018]
[1762138217509,0.1357683,108850.0,108840.0,0.05703]
[1762138217711,0.1357683,108850.0,108840.0,0.08999954]
[1762138218501,0.1357551,108860.0,108850.0,0.04411]
[1762138218812,0.04389,108870.0,108860.0,0.05703]
[1762138219118,0.1357467,108870.0,108860.0,0.139454]
[1762138219318,0.1357467,108870.0,108860.0,0.1064844]
[1762138219519,0.1357446,108880.0,108870.0,0.04411]
[1762138219721,0.1434446,108880.0,108870.0,0.07707711]
[1762138220518,0.1357446,108880.0,108870.0,0.07707711]
[1762138220912,0.1397446,108880.0,108870.0,0.07707711]
[1762138221317,0.1357446,108880.0,108870.0,0.07707711]
[1762138221513,0.1467446,108880.0,108870.0,0.07707711]
[1762138221720,0.1544446,108880.0,108870.0,0.07707711]
[1762138222322,0.1467446,108880.0,108870.0,0.07707711]
[1762138222616,0.1467446,108880.0,108870.0,0.09707711]
[1762138222918,0.011,108880.0,108870.0,0.42233409]
[1762138223106,0.011,108880.0,108870.0,0.74321409]
[1762138223313,0.1028483,108880.0,108870.0,0.69375969]
[1762138223516,0.1248583,108880.0,108870.0,0.74314857]
[1762138223713,0.1467383,108880.0,108870.0,0.60129187]
[1762138223914,0.1544383,108880.0,108870.0,0.41437888]
[1762138225316,0.1544383,108880.0,108870.0,0.44728782]
[1762138226316,0.1544383,108880.0,108870.0,0.39789894]
[1762138227910,0.7544383,108880.0,108870.0,4e-08]
[1762138228117,0.05813,108860.0,108840.0,0.06230888]
[1762138228419,0.02323,108860.0,108850.0,0.22948299]
[1762138228621,0.36541,108870.0,108860.0,0.0555]
[1762138229021,0.04457,108870.0,108860.0,0.0555]
[1762138229823,0.04457,108850.0,108840.0,0.09195888]
[1762138230021,0.04457,108850.0,108840.0,0.04938888]
[1762138230323,0.05813,108840.0,108830.0,0.28675888]
[1762138230727,0.04457,108840.0,108830.0,0.28675888]
[1762138231120,0.05813,108840.0,108830.0,0.09195888]
[1762138232423,0.05713,108840.0,108830.0,0.04938888]
[1762138232727,0.05713,108840.0,108830.0,0.07369888]
[1762138232929,0.05713,108840.0,108830.0,0.02531]